fUSD/lending_fUSD_20250202
["ID","MTS","AMOUNT","RATE_DAILY","PERIOD"]
[351269501,1738504268283,-957.29,0.00011369,2]
[351269502,1738504268293,-2234.14,0.00011369,2]
[351269503,1738504268302,-500.0,0.00011369,2]
[351269504,1738504268312,-976.1,0.00011369,2]
[351269505,1738504268322,-500.0,0.00011369,2]
[351269506,1738504268331,-872.1,0.00011369,2]
[351269507,1738504268341,-500.0,0.00011369,2]
[351269508,1738504268350,-500.0,0.00011369,2]
[351269509,1738504268359,-500.0,0.00011369,2]
[351269510,1738504268368,-972.87,0.00011369,2]
[351269511,1738504268378,-558.8,0.00011369,2]
[351269512,1738504268387,-500.0,0.00011369,2]
[351269513,1738504268396,-500.0,0.00011369,2]
[351269514,1738504268405,-500.0,0.00011369,2]
[351269515,1738504268415,-500.0,0.00011369,2]
[351269516,1738504268424,-500.0,0.00011369,2]
[351269517,1738504268433,-1646.16,0.00011369,2]
[351269518,1738504268442,-500.0,0.00011369,2]
[351269519,1738504268451,-541.68,0.00011369,2]
[351269520,1738504268461,-1101.2,0.00011369,2]
[351269521,1738504268470,-500.0,0.00011369,2]
[351269522,1738504268479,-1110.27,0.00011369,2]
[351269523,1738504268488,-500.0,0.00011369,2]
[351269524,1738504268498,-500.0,0.00011369,2]
[351269525,1738504268507,-500.0,0.00011369,2]
[351269526,1738504268517,-692.77,0.00011369,2]
[351269527,1738504268526,-430.2436793,0.00011369,2]
[351269528,1738504268536,-1369.05,0.00011369,2]
[351269529,1738504268547,-500.0,0.00011369,2]
[351269530,1738504268556,-500.0,0.00011369,2]
[351269531,1738504268565,-525.27106644,0.00011369,2]
[351269532,1738504268574,-2276.42,0.00011369,2]
[351269533,1738504268583,-299.50517825,0.00011369,2]
[351269534,1738504268593,-874.2,0.00011369,2]
[351269535,1738504268602,-500.0,0.00011369,2]
[351269536,1738504268612,-500.0,0.00011369,2]
[351269537,1738504268621,-500.0,0.00011369,2]
[351269538,1738504268631,-500.0,0.00011369,2]
[351269539,1738504268640,-500.0,0.00011369,2]
[351269540,1738504268649,-1986.06,0.00011369,2]
[351269541,1738504268658,-500.0,0.00011369,2]
[351269542,1738504268667,-500.0,0.00011369,2]
[351269543,1738504268677,-500.0,0.00011369,2]
[351269544,1738504268686,-500.0,0.00011369,2]
[351269545,1738504268695,-894.65,0.00011369,2]
[351269546,1738504268704,-500.0,0.00011369,2]
[351269547,1738504268713,-500.0,0.00011369,2]
[351269548,1738504268722,-533.89,0.00011369,2]
[351269549,1738504268731,-213.14578028,0.00011369,2]
[351269550,1738504268740,-562.9,0.00011369,2]
[351269551,1738504268749,-299.28716255,0.00011369,2]
[351269552,1738504268758,-1003.49,0.00011369,2]
[351269553,1738504268767,-500.0,0.00011369,2]
[351269554,1738504268776,-868.83,0.00011369,2]
[351269555,1738504268785,-500.0,0.00011369,2]
[351269556,1738504268794,-2481.47,0.00011369,2]
[351269557,1738504268803,-569.65249614,0.00011369,2]
[351269558,1738504268812,-599.47,0.00011369,2]
[351269559,1738504268821,-500.0,0.00011369,2]
[351269560,1738504268831,-522.22,0.00011369,2]
[351269561,1738504268840,-500.0,0.00011369,2]
[351269562,1738504268849,-500.0,0.00011369,2]
[351269563,1738504268857,-500.0,0.00011369,2]
[351269564,1738504268867,-500.0,0.00011369,2]
[351269565,1738504268876,-500.0,0.00011369,2]
[351269566,1738504268886,-965.66,0.00011369,2]
[351269567,1738504268895,-407.11833258,0.00011369,2]
[351269568,1738504268905,-1286.64,0.00011369,2]
[351269569,1738504268914,-500.0,0.00011369,2]
[351269570,1738504268925,-500.0,0.00011369,2]
[351269571,1738504268934,-500.0,0.00011369,2]
[351269572,1738504268943,-529.36,0.00011369,2]
[351269573,1738504268953,-500.0,0.00011369,2]
[351269574,1738504268963,-1049.85,0.00011369,2]
[351269575,1738504268972,-500.0,0.00011369,2]
[351269576,1738504268982,-1006.46,0.00011369,2]
[351269577,1738504268991,-500.0,0.00011369,2]
[351269578,1738504269001,-500.0,0.00011369,2]
[351269579,1738504269011,-500.0,0.00011369,2]
[351269580,1738504269020,-614.85,0.00011369,2]
[351269581,1738504269030,-500.0,0.00011369,2]
[351269582,1738504269039,-1871.33,0.00011369,2]
[351269583,1738504269049,-500.0,0.00011369,2]
[351269584,1738504269058,-500.0,0.00011369,2]
[351269585,1738504269067,-625.4,0.00011369,2]
[351269586,1738504269076,-659.73,0.00011369,2]
[351269587,1738504269085,-500.0,0.00011369,2]
[351269588,1738504269095,-500.0,0.00011369,2]
[351269589,1738504269104,-1846.27,0.00011369,2]
[351269590,1738504269113,-500.0,0.00011369,2]
[351269591,1738504269123,-500.0,0.00011369,2]
[351269592,1738504269132,-762.07,0.00011369,2]
[351269593,1738504269141,-500.0,0.00011369,2]
[351269594,1738504269151,-589.38,0.00011369,2]
[351269595,1738504269162,-569.09,0.00011369,2]
[351269596,1738504269174,-1236.97,0.00011369,2]
[351269597,1738504269183,-795.49,0.00011369,2]
[351269598,1738504269193,-500.0,0.00011369,2]
[351269599,1738504269202,-500.0,0.00011369,2]
[351269600,1738504269212,-636.71,0.00011369,2]
[351269601,1738504269222,-1333.24,0.00011369,2]
[351269602,1738504269231,-1073.33,0.00011369,2]
[351269603,1738504269240,-500.0,0.00011369,2]
[351269604,1738504269249,-643.11,0.00011369,2]
[351269605,1738504269259,-500.0,0.00011369,2]
[351269606,1738504269268,-1349.72,0.00011369,2]
[351269607,1738504269278,-357.76351398,0.00011369,2]
[351269608,1738504269287,-813.06,0.00011369,2]
[351269609,1738504269296,-500.0,0.00011369,2]
[351269610,1738504269305,-500.0,0.00011369,2]
[351269611,1738504269314,-500.0,0.00011369,2]
[351269612,1738504269323,-527.68161829,0.00011369,2]
[351269613,1738504269333,-666.25,0.00011369,2]
[351269614,1738504269342,-4276.69,0.00011369,2]
[351269615,1738504269352,-500.0,0.00011369,2]
[351269616,1738504269360,-500.0,0.00011369,2]
[351269617,1738504269370,-500.0,0.00011369,2]
[351269618,1738504269379,-687.97,0.00011369,2]
[351269619,1738504269388,-500.0,0.00011369,2]
[351269620,1738504269398,-500.0,0.00011369,2]
[351269621,1738504269407,-500.0,0.00011369,2]
[351269622,1738504269416,-500.0,0.00011369,2]
[351269623,1738504269426,-500.0,0.00011369,2]
[351269624,1738504269435,-500.0,0.00011369,2]
[351269625,1738504269444,-500.0,0.00011369,2]
[351269626,1738504269453,-1888.12,0.00011369,2]
[351269627,1738504269463,-500.0,0.00011369,2]
[351269628,1738504269472,-500.0,0.00011369,2]
[351269629,1738504269481,-500.0,0.00011369,2]
[351269630,1738504269490,-500.0,0.00011369,2]
[351269631,1738504269499,-500.0,0.00011369,2]
[351269632,1738504269508,-500.0,0.00011369,2]
[351269633,1738504269518,-631.38875973,0.00011369,2]
[351269634,1738504269527,-500.0,0.00011369,2]
[351269635,1738504269536,-2650.77,0.00011369,2]
[351269636,1738504269702,-500.0,0.00011369,2]
[351269637,1738504269712,-889.49,0.00011369,2]
[351269638,1738504269721,-500.0,0.00011369,2]
[351269639,1738504269731,-500.0,0.00011369,2]
[351269640,1738504269739,-500.0,0.00011369,2]
[351269641,1738504269749,-2073.43,0.00011369,2]
[351269642,1738504269758,-692.85,0.00011369,2]
[351269643,1738504269768,-500.0,0.00011369,2]
[351269644,1738504269777,-631.15,0.00011369,2]
[351269645,1738504269786,-500.0,0.00011369,2]
[351269646,1738504269796,-500.0,0.00011369,2]
[351269647,1738504269805,-500.0,0.00011369,2]
[351269648,1738504269815,-1741.6,0.00011369,2]
[351269649,1738504269824,-520.54802072,0.00011369,2]
[351269650,1738504269834,-1164.33,0.00011369,2]
[351269651,1738504269844,-5378.97,0.00011369,2]
[351269652,1738504269854,-782.16,0.00011369,2]
[351269653,1738504269863,-500.0,0.00011369,2]
[351269654,1738504269873,-1939.2,0.00011369,2]
[351269655,1738504269883,-500.0,0.00011369,2]
[351269656,1738504269893,-500.0,0.00011369,2]
[351269657,1738504269902,-301.47314582,0.00011369,2]
[351269658,1738504269912,-457.19132444,0.00011369,2]
[351269659,1738504269926,-500.0,0.00011369,2]
[351269660,1738504269935,-500.0,0.00011369,2]
[351269661,1738504269945,-3479.36,0.00011369,2]
[351269662,1738504269954,-2115.64,0.00011369,2]
[351269663,1738504269964,-500.0,0.00011369,2]
[351269664,1738504269973,-500.0,0.00011369,2]
[351269665,1738504269983,-500.0,0.00011369,2]
[351269666,1738504269992,-500.0,0.00011369,2]
[351269667,1738504270002,-1744.78,0.00011369,2]
[351269668,1738504270011,-1775.36,0.00011369,2]
[351269669,1738504270020,-500.0,0.00011369,2]
[351269670,1738504270029,-635.62,0.00011369,2]
[351269671,1738504270039,-500.0,0.00011369,2]
[351269672,1738504270048,-500.0,0.00011369,2]
[351269673,1738504270057,-635.75,0.00011369,2]
[351269674,1738504270066,-577.14,0.00011369,2]
[351269675,1738504270075,-4758.77,0.00011369,2]
[351269676,1738504270084,-500.0,0.00011369,2]
[351269677,1738504270093,-535.02,0.00011369,2]
[351269678,1738504270102,-1040.09,0.00011369,2]
[351269679,1738504270111,-500.0,0.00011369,2]
[351269680,1738504270120,-1651.88,0.00011369,2]
[351269681,1738504270129,-2719.88,0.00011369,2]
[351269682,1738504270139,-500.0,0.00011369,2]
[351269683,1738504270148,-1058.2,0.00011369,2]
[351269684,1738504270157,-500.0,0.00011369,2]
[351269685,1738504270173,-500.0,0.00011369,2]
[351269686,1738504270183,-1016.81,0.00011369,2]
[351269687,1738504270193,-556.1,0.00011369,2]
[351269688,1738504270203,-500.0,0.00011369,2]
[351269689,1738504270212,-500.0,0.00011369,2]
[351269690,1738504270224,-2588.77,0.00011369,2]
[351269691,1738504270233,-500.0,0.00011369,2]
[351269692,1738504270243,-500.0,0.00011369,2]
[351269693,1738504270252,-500.0,0.00011369,2]
[351269694,1738504270261,-500.0,0.00011369,2]
[351269695,1738504270270,-932.81,0.00011369,2]
[351269696,1738504270279,-1942.11,0.00011369,2]
[351269697,1738504270289,-500.0,0.00011369,2]
[351269698,1738504270299,-315.54446768,0.00011369,2]
[351269699,1738504270308,-2418.85,0.00011369,2]
[351269700,1738504270317,-1733.68,0.00011369,2]
[351269701,1738504270326,-500.0,0.00011369,2]
[351269702,1738504270337,-2393.49,0.00011369,2]
[351269703,1738504270346,-500.0,0.00011369,2]
[351269704,1738504270355,-566.87,0.00011369,2]
[351269705,1738504270364,-500.0,0.00011369,2]
[351269706,1738504270373,-3124.44,0.00011369,2]
[351269707,1738504270383,-500.0,0.00011369,2]
[351269708,1738504270392,-692.82,0.00011369,2]
[351269709,1738504270401,-2525.16,0.00011369,2]
[351269710,1738504270410,-500.0,0.00011369,2]
[351269711,1738504270421,-1914.95,0.00011369,2]
[351269712,1738504270431,-8288.01,0.00011369,2]
[351269713,1738504270440,-500.0,0.00011369,2]
[351269714,1738504270450,-1132.95,0.00011369,2]
[351269715,1738504270459,-500.0,0.00011369,2]
[351269716,1738504270469,-884.77,0.00011369,2]
[351269717,1738504270480,-500.0,0.00011369,2]
[351269718,1738504270489,-4152.35,0.00011369,2]
[351269719,1738504270499,-500.0,0.00011369,2]
[351269720,1738504270509,-500.0,0.00011369,2]
[351269721,1738504270519,-500.0,0.00011369,2]
[351269722,1738504270528,-1549.92,0.00011369,2]
[351269723,1738504270537,-3699.04,0.00011369,2]
[351269724,1738504270547,-3349.22,0.00011369,2]
[351269725,1738504270556,-2155.85,0.00011369,2]
[351269726,1738504270565,-500.0,0.00011369,2]
[351269727,1738504270575,-493.27044638,0.00011369,2]
[351269728,1738504270585,-553.14,0.00011369,2]
[351269729,1738504270595,-517.3083456,0.00011369,2]
[351269730,1738504270604,-510.15569113,0.00011369,2]
[351269731,1738504270614,-500.0,0.00011369,2]
[351269732,1738504270623,-5222.05,0.00011369,2]
[351269733,1738504270632,-500.0,0.00011369,2]
[351269734,1738504270641,-500.0,0.00011369,2]
[351269735,1738504270650,-500.0,0.00011369,2]
[351269736,1738504270659,-1265.95,0.00011369,2]
[351269737,1738504270670,-1887.09,0.00011369,2]
[351269738,1738504270679,-4613.26,0.00011369,2]
[351269739,1738504270688,-500.0,0.00011369,2]
[351269740,1738504270698,-500.0,0.00011369,2]
[351269741,1738504270707,-1975.44,0.00011369,2]
[351269742,1738504270715,-7500.21,0.00011369,2]
[351269743,1738504270724,-500.0,0.00011369,2]
[351269744,1738504270735,-1842.34,0.00011369,2]
[351269745,1738504270744,-6467.51,0.00011369,2]
[351269746,1738504270753,-2260.28,0.00011369,2]
[351269747,1738504270762,-500.0,0.00011369,2]
[351269748,1738504270771,-4127.19,0.00011369,2]
[351269749,1738504270780,-625.86,0.00011369,2]
[351269750,1738504270790,-500.0,0.00011369,2]
[351269751,1738504270799,-522.95,0.00011369,2]
[351269752,1738504270808,-500.0,0.00011369,2]
[351269753,1738504270817,-171.08963982,0.00011369,2]
[351269754,1738504270826,-2930.25,0.00011369,2]
[351269755,1738504270835,-500.0,0.00011369,2]
[351269756,1738504270844,-500.0,0.00011369,2]
[351269757,1738504270853,-500.0,0.00011369,2]
[351269758,1738504270862,-1487.62,0.00011369,2]
[351269759,1738504270870,-2190.38,0.00011369,2]
[351269760,1738504270879,-7605.13,0.00011369,2]
[351269761,1738504270888,-1340.89,0.00011369,2]
[351269762,1738504270898,-500.0,0.00011369,2]
[351269763,1738504270907,-527.51,0.00011369,2]
[351269764,1738504270916,-500.0,0.00011369,2]
[351269765,1738504270927,-500.0,0.00011369,2]
[351269766,1738504270936,-336.89778447,0.00011369,2]
[351269767,1738504270946,-500.0,0.00011369,2]
[351269768,1738504270955,-500.0,0.00011369,2]
[351269769,1738504270964,-3333.87,0.00011369,2]
[351269770,1738504270973,-500.0,0.00011369,2]
[351269771,1738504270982,-4428.35,0.00011369,2]
[351269772,1738504270991,-500.0,0.00011369,2]
[351269773,1738504271000,-749.13,0.00011369,2]
[351269774,1738504271009,-500.0,0.00011369,2]
[351269775,1738504271018,-500.0,0.00011369,2]
[351269776,1738504271028,-724.96,0.00011369,2]
[351269777,1738504271037,-500.0,0.00011369,2]
[351269778,1738504271047,-6018.72,0.00011369,2]
[351269779,1738504271056,-2737.51,0.00011369,2]
[351269780,1738504271066,-500.0,0.00011369,2]
[351269781,1738504271076,-500.0,0.00011369,2]
[351269782,1738504271085,-2541.32,0.00011369,2]
[351269783,1738504271095,-5735.11,0.00011369,2]
[351269784,1738504271105,-1106.65,0.00011369,2]
[351269785,1738504271114,-700.57,0.00011369,2]
[351269786,1738504271123,-12278.4,0.00011369,2]
[351269787,1738504271133,-500.0,0.00011369,2]
[351269788,1738504271144,-1347.61,0.00011369,2]
[351269789,1738504271155,-500.0,0.00011369,2]
[351269790,1738504271170,-4277.99,0.00011369,2]
[351269791,1738504271180,-2014.34,0.00011369,2]
[351269792,1738504271189,-9838.32,0.00011369,2]
[351269793,1738504271198,-543.94,0.00011369,2]
[351269794,1738504271209,-1686.35,0.00011369,2]
[351269795,1738504271219,-500.0,0.00011369,2]
[351269796,1738504271228,-500.0,0.00011369,2]
[351269797,1738504271238,-13955.14,0.00011369,2]
[351269798,1738504271248,-500.0,0.00011369,2]
[351269799,1738504271258,-500.15,0.00011369,2]
[351269800,1738504271267,-8050.75,0.00011369,2]
[351269801,1738504271276,-500.0,0.00011369,2]
[351269802,1738504271285,-500.0,0.00011369,2]
[351269803,1738504271294,-500.0,0.00011369,2]
[351269804,1738504271303,-500.0,0.00011369,2]
[351269805,1738504271312,-500.0,0.00011369,2]
[351269806,1738504271321,-500.0,0.00011369,2]
[351269807,1738504271330,-4979.31,0.00011369,2]
[351269808,1738504271339,-500.0,0.00011369,2]
[351269809,1738504271348,-7528.65,0.00011369,2]
[351269810,1738504271357,-500.0,0.00011369,2]
[351269811,1738504271366,-1328.42,0.00011369,2]
[351269812,1738504271376,-500.0,0.00011369,2]
[351269813,1738504271385,-8671.46,0.00011369,2]
[351269814,1738504271395,-500.0,0.00011369,2]
[351269815,1738504271404,-500.0,0.00011369,2]
[351269816,1738504271413,-484.05109103,0.00011369,2]
[351269817,1738504271424,-500.0,0.00011369,2]
[351269818,1738504271434,-500.0,0.00011369,2]
[351269819,1738504271443,-500.0,0.00011369,2]
[351269820,1738504271452,-500.0,0.00011369,2]
[351269821,1738504271461,-500.0,0.00011369,2]
[351269822,1738504271471,-500.0,0.00011369,2]
[351269823,1738504271480,-4988.6,0.00011369,2]
[351269824,1738504271489,-500.0,0.00011369,2]
[351269825,1738504271502,-1284.16,0.00011369,2]
[351269826,1738504271511,-651.92,0.00011369,2]
[351269827,1738504271520,-2888.57,0.00011369,2]
[351269828,1738504271529,-572.58,0.00011369,2]
[351269829,1738504271539,-663.18,0.00011369,2]
[351269830,1738504271548,-500.0,0.00011369,2]
[351269831,1738504271557,-1242.68,0.00011369,2]
[351269832,1738504271566,-500.0,0.00011369,2]
[351269833,1738504271575,-277.61169292,0.00011369,2]
[351269834,1738504271585,-500.0,0.00011369,2]
[351269835,1738504271594,-3206.11,0.00011369,2]
[351269836,1738504271603,-511.48038569,0.00011369,2]
[351269837,1738504271612,-692.3,0.00011369,2]
[351269838,1738504271622,-500.0,0.00011369,2]
[351269839,1738504271631,-500.0,0.00011369,2]
[351269840,1738504271640,-3656.21,0.00011369,2]
[351269841,1738504271649,-500.0,0.00011369,2]
[351269842,1738504271658,-552.81,0.00011369,2]
[351269843,1738504271667,-500.0,0.00011369,2]
[351269844,1738504271678,-500.0,0.00011369,2]
[351269845,1738504271687,-508.38706783,0.00011369,2]
[351269846,1738504271696,-500.0,0.00011369,2]
[351269847,1738504271706,-500.0,0.00011369,2]
[351269848,1738504271716,-500.0,0.00011369,2]
[351269849,1738504271727,-500.0,0.00011369,2]
[351269850,1738504271738,-500.0,0.00011369,2]
[351269851,1738504271747,-3947.41,0.00011369,2]
[351269852,1738504271757,-4905.43,0.00011369,2]
[351269853,1738504271767,-1981.9,0.00011369,2]
[351269854,1738504271777,-3557.6,0.00011369,2]
[351269855,1738504271786,-1643.29,0.00011369,2]
[351269856,1738504271795,-504.09078428,0.00011369,2]
[351269857,1738504271805,-500.0,0.00011369,2]
[351269858,1738504271814,-14841.38,0.00011369,2]
[351269859,1738504271823,-500.0,0.00011369,2]
[351269860,1738504271832,-542.27,0.00011369,2]
[351269861,1738504271842,-500.0,0.00011369,2]
[351269862,1738504271851,-1169.41,0.00011369,2]
[351269863,1738504271861,-500.0,0.00011369,2]
[351269864,1738504271871,-1818.01,0.00011369,2]
[351269865,1738504271880,-794.77,0.00011369,2]
[351269866,1738504271889,-500.0,0.00011369,2]
[351269867,1738504271898,-12108.26,0.00011369,2]
[351269868,1738504271908,-500.0,0.00011369,2]
[351269869,1738504271917,-500.0,0.00011369,2]
[351269870,1738504271928,-1065.17,0.00011369,2]
[351269871,1738504271937,-2162.4,0.00011369,2]
[351269872,1738504271946,-500.0,0.00011369,2]
[351269873,1738504271956,-500.0,0.00011369,2]
[351269874,1738504271966,-213.2624506,0.00011369,2]
[351269875,1738504271976,-500.0,0.00011369,2]
[351269876,1738504271985,-11811.14,0.00011369,2]
[351269877,1738504271994,-500.0,0.00011369,2]
[351269878,1738504272003,-2656.04,0.00011369,2]
[351269879,1738504272013,-500.0,0.00011369,2]
[351269880,1738504272182,-1449.28,0.00011369,2]
[351269881,1738504272192,-500.0,0.00011369,2]
[351269882,1738504272202,-500.0,0.00011369,2]
[351269883,1738504272212,-5655.33,0.00011369,2]
[351269884,1738504272222,-725.88,0.00011369,2]
[351269885,1738504272232,-1879.37,0.00011369,2]
[351269886,1738504272241,-500.0,0.00011369,2]
[351269887,1738504272252,-2237.55,0.00011369,2]
[351269888,1738504272261,-500.0,0.00011369,2]
[351269889,1738504272270,-500.0,0.00011369,2]
[351269890,1738504272279,-1663.9,0.00011369,2]
[351269891,1738504272289,-500.0,0.00011369,2]
[351269892,1738504272298,-500.0,0.00011369,2]
[351269893,1738504272308,-500.89,0.00011369,2]
[351269894,1738504272317,-2994.29,0.00011369,2]
[351269895,1738504272327,-505.34039818,0.00011369,2]
[351269896,1738504272336,-651.46,0.00011369,2]
[351269897,1738504272345,-500.0,0.00011369,2]
[351269898,1738504272354,-504.78658909,0.00011369,2]
[351269899,1738504272363,-500.0,0.00011369,2]
[351269900,1738504272372,-899.76,0.00011369,2]
[351269901,1738504272381,-10069.92,0.00011369,2]
[351269902,1738504272390,-500.0,0.00011369,2]
[351269903,1738504272399,-3770.17725029,0.00011391,2]
[351269904,1738504272408,-500.0,0.00011404,2]
[351269905,1738504272417,-4399.71,0.00011404,2]
[351269906,1738504272428,-3468.75,0.00011405,2]
[351269907,1738504272438,-2973.17,0.00011405,2]
[351269908,1738504272447,-727.2,0.00011405,2]
[351269909,1738504272456,-2677.2,0.00011405,2]
[351269910,1738504272466,-1594.63,0.00011405,2]
[351269911,1738504272475,-2774.99,0.00011405,2]
[351269912,1738504272484,-2506.27,0.00011405,2]
[351269913,1738504272493,-3691.82,0.00011405,2]
[351269914,1738504272503,-2224.24,0.00011405,2]
[351269915,1738504272512,-8875.35,0.00011405,2]
[351269916,1738504272522,-15774.79,0.00011405,2]
[351269917,1738504272532,-3052.76,0.00011405,2]
[351269918,1738504272541,-4943.15,0.00011405,2]
[351269919,1738504272551,-494.48063265,0.00011406,2]
[351269920,1738504272560,-198.51599479,0.00011406,2]
[351269921,1738504272569,-160.68382969,0.00011441,2]
[351269922,1738504272578,-3770.17725029,0.00011467,2]
[351269923,1738504272588,-500.0,0.00011505,2]
[351269924,1738504272597,-9257.87,0.00011505,2]
[351269925,1738504272606,-1965.16,0.00011505,2]
[351269926,1738504272616,-3051.56,0.00011505,2]
[351269927,1738504272625,-1328.85,0.00011505,2]
[351269928,1738504272635,-1283.55,0.00011505,2]
[351269929,1738504272644,-8231.95,0.00011505,2]
[351269930,1738504272653,-3044.32,0.00011505,2]
[351269931,1738504272662,-3474.04,0.00011505,2]
[351269932,1738504272672,-500.0,0.00011505,2]
[351269933,1738504272682,-3782.36,0.00011505,2]
[351269934,1738504272691,-2186.29,0.00011505,2]
[351269935,1738504272700,-2507.18,0.00011505,2]
[351269936,1738504272710,-1844.24,0.00011505,2]
[351269937,1738504272719,-3183.94,0.00011505,2]
[351269938,1738504272728,-1347.57,0.00011505,2]
[351269939,1738504272737,-899.57,0.00011505,2]
[351269940,1738504272746,-5128.4,0.00011505,2]
[351269941,1738504272755,-4399.71,0.00011505,2]
[351269942,1738504272764,-1259.21,0.00011505,2]
[351269943,1738504272773,-2416.75,0.00011505,2]
[351269944,1738504272783,-500.0,0.00011505,2]
[351269945,1738504272792,-500.0,0.00011505,2]
[351269946,1738504272801,-599.39,0.00011506,2]
[351269947,1738504272810,-533.68731047,0.00011506,2]
[351269948,1738504272819,-1275.83,0.00011506,2]
[351269949,1738504272828,-500.0,0.00011506,2]
[351269950,1738504272838,-500.0,0.00011506,2]
[351269951,1738504272847,-500.0,0.00011506,2]
[351269952,1738504272856,-562.74,0.00011506,2]
[351269953,1738504272865,-500.0,0.00011506,2]
[351269954,1738504272875,-659.01,0.00011506,2]
[351269955,1738504272883,-500.0,0.00011506,2]
[351269956,1738504272893,-500.0,0.00011506,2]
[351269957,1738504272902,-500.0,0.00011506,2]
[351269958,1738504272911,-500.0,0.00011506,2]
[351269959,1738504272922,-500.0,0.00011506,2]
[351269960,1738504272931,-500.0,0.00011506,2]
[351269961,1738504272940,-500.0,0.00011506,2]
[351269962,1738504272950,-500.65,0.00011506,2]
[351269963,1738504272960,-596.08,0.00011506,2]
[351269964,1738504272970,-867.7,0.00011506,2]
[351269965,1738504272980,-500.0,0.00011506,2]
[351269966,1738504272990,-500.0,0.00011506,2]
[351269967,1738504272999,-500.0,0.00011506,2]
[351269968,1738504273009,-500.0,0.00011506,2]
[351269969,1738504273019,-500.0,0.00011506,2]
[351269970,1738504273028,-500.96,0.00011506,2]
[351269971,1738504273038,-500.0,0.00011506,2]
[351269972,1738504273047,-500.0,0.00011506,2]
[351269973,1738504273057,-500.0,0.00011506,2]
[351269974,1738504273066,-500.0,0.00011506,2]
[351269975,1738504273075,-500.0,0.00011506,2]
[351269976,1738504273084,-500.0,0.00011506,2]
[351269977,1738504273094,-500.0,0.00011506,2]
[351269978,1738504273103,-500.0,0.00011506,2]
[351269979,1738504273114,-500.0,0.00011506,2]
[351269980,1738504273123,-587.58,0.00011506,2]
[351269981,1738504273132,-500.0,0.00011506,2]
[351269982,1738504273141,-613.32,0.00011506,2]
[351269983,1738504273151,-500.0,0.00011506,2]
[351269984,1738504273160,-500.0,0.00011506,2]
[351269985,1738504273171,-511.96,0.00011506,2]
[351269986,1738504273181,-500.0,0.00011506,2]
[351269987,1738504273190,-500.0,0.00011506,2]
[351269988,1738504273199,-523.17711343,0.00011506,2]
[351269989,1738504273210,-500.0,0.00011506,2]
[351269990,1738504273219,-500.0,0.00011506,2]
[351269991,1738504273229,-500.0,0.00011506,2]
[351269992,1738504273238,-500.0,0.00011506,2]
[351269993,1738504273248,-804.93,0.00011506,2]
[351269994,1738504273257,-562.51,0.00011506,2]
[351269995,1738504273266,-528.01144619,0.00011506,2]
[351269996,1738504273276,-500.0,0.00011506,2]
[351269997,1738504273285,-500.0,0.00011506,2]
[351269998,1738504273295,-500.0,0.00011506,2]
[351269999,1738504273304,-500.0,0.00011506,2]
[351270000,1738504273313,-510.15870037,0.00011506,2]